bitfinex/quotes_ETHUSD_20240715
["timestamp","ask_amount","ask_price","bid_price","bid_amount"]
[1721009862806,5.16546,3287.0,3286.2,2.73868]
[1721009863005,0.56430705,3286.9,3286.2,2.73868]
[1721009863743,3.30245705,3286.9,3286.1,5.566]
[1721009863947,3.30245705,3286.9,3286.1,8.3048]
[1721009864153,2.3364,3286.8,3286.1,8.3048]
[1721009864527,2.3364,3286.8,3286.2,2.73872]
[1721009865162,2.3364,3286.8,3286.3,2.73863]
[1721009868586,2.3364,3286.8,3286.7,1.069]
[1721009870538,0.4776105,3287.1,3286.7,1.069]
[1721009870886,2.3577,3287.4,3287.0,1.069]
[1721009871105,0.71333163,3287.3,3286.9,2.73813]
[1721009871261,2.3577,3287.4,3287.2,1.069]
[1721009871604,2.83523886,3287.4,3287.2,1.069]
[1721009872308,2.83523886,3287.4,3286.9,2.73813]
[1721009873389,2.83523886,3287.4,3287.0,2.73805]
[1721009874889,0.47753886,3287.4,3287.0,2.73805]
[1721009875103,2.3836,3288.1,3287.3,2.7378]
[1721009875407,2.3836,3288.1,3287.5,2.73761]
[1721009875558,2.3836,3288.4,3287.7,2.73746]
[1721009875757,0.512041,3288.3,3287.7,2.73746]
[1721009877019,2.3836,3288.4,3287.9,2.73725]
[1721009877221,5.63338258,3288.7,3287.9,2.73725]
[1721009878039,2.89674258,3288.7,3287.8,2.564]
[1721009878329,2.4193,3289.0,3287.9,2.3449]
[1721009878530,2.692933,3289.0,3287.9,2.3449]
[1721009878833,2.692933,3289.0,3288.3,2.73691]
[1721009879489,2.692933,3289.0,3288.3,2.73697]
[1721009880293,5.429323,3289.0,3288.3,2.73697]
[1721009880521,0.5429323,3288.9,3288.3,2.73697]
[1721009880722,2.692933,3289.0,3288.3,2.73697]
[1721009881997,0.31824461,3288.9,3288.3,2.73697]
[1721009884622,0.31824461,3288.9,3288.4,2.73688]
[1721009886841,0.31824461,3288.9,3288.2,2.73705]
[1721009888248,0.31824461,3288.9,3288.3,2.73696]
[1721009890621,0.31824461,3288.9,3288.2,2.73705]
[1721009890622,0.31824461,3288.9,3288.4,2.73681]
[1721009890834,0.31824461,3288.9,3288.5,2.7368]
[1721009894239,0.31824461,3288.9,3288.7,1.068]
[1721009898836,0.31824461,3288.9,3288.5,1.068]
[1721009900344,3.05472461,3288.9,3288.1,2.73711]
[1721009900663,3.13075125,3288.9,3288.2,1.068]
[1721009900869,2.2864,3288.7,3287.7,10.16744]
[1721009901097,5.02309,3288.7,3288.0,2.73719]
[1721009901300,2.2864,3288.7,3288.2,1.068]
[1721009902497,0.31824461,3288.9,3288.4,1.068]
[1721009902662,0.31824461,3288.9,3288.5,1.068]
[1721009904497,0.31824461,3288.9,3288.4,2.73689]
[1721009904498,0.85876207,3288.9,3288.4,2.73689]
[1721009904699,0.85876207,3288.9,3288.3,1.068]
[1721009904904,0.85876207,3288.9,3288.3,3.80497]
[1721009905260,0.31824461,3288.9,3288.3,3.80497]
[1721009906606,2.73656,3288.8,3288.0,2.7372]
[1721009906762,2.73656,3288.8,3288.2,1.068]
[1721009908709,4.738109,3288.8,3288.2,1.068]
[1721009909065,4.738109,3288.8,3288.4,1.068]
[1721009909266,2.001549,3288.8,3288.4,1.068]
[1721009909488,2.001549,3288.8,3288.6,1.068]
[1721009914371,2.001549,3288.8,3288.6,2.73667]
[1721009914721,2.001549,3288.8,3288.7,1.068]
[1721009917209,2.001549,3288.8,3288.7,6.619507]
[1721009917383,2.001549,3288.8,3288.7,9.356147]
[1721009918474,2.001549,3288.8,3288.7,12.356147]
[1721009921224,2.001549,3288.8,3288.7,9.619507]
[1721009921401,2.001549,3288.8,3288.7,5.73664]
[1721009921604,2.001549,3288.8,3288.7,6.80464]
[1721009923895,2.001549,3288.8,3288.7,4.068]
[1721009926834,2.001549,3288.8,3288.7,6.80464]
[1721009927145,2.001549,3288.8,3288.7,7.758783]
[1721009929909,2.001549,3288.8,3288.7,10.495423]
[1721009940341,2.001549,3288.8,3288.7,9.54128]
[1721009940946,2.001549,3288.8,3288.5,2.73674]
[1721009941292,2.001549,3288.8,3288.7,1.068]
[1721009942095,2.001549,3288.8,3288.7,3.80464]
[1721009945374,2.001549,3288.8,3288.7,6.54128]
[1721009945578,2.001549,3288.8,3288.7,7.428598]
[1721009947982,2.001549,3288.8,3288.4,2.73685]
[1721009948199,2.001549,3288.8,3288.4,1.068]
[1721009948363,2.001549,3288.8,3288.6,1.068]
[1721009952071,2.001549,3288.8,3288.6,3.80466]
[1721009952273,2.001549,3288.8,3288.7,5.47328]
[1721009952466,2.001549,3288.8,3288.7,6.127408]
[1721009961034,2.001549,3288.8,3288.7,6.54128]
[1721009961450,2.001549,3288.8,3288.7,5.47328]
[1721009961812,2.001549,3288.8,3288.7,2.73664]
[1721009962639,2.001549,3288.8,3288.6,1.068]
[1721009962824,2.001549,3288.8,3288.4,3.80487]
[1721009963142,2.001549,3288.8,3288.5,3.0]
[1721009963650,2.001549,3288.8,3288.4,3.80487]
[1721009964247,2.48258836,3288.8,3288.4,1.068]
[1721009965272,2.48258836,3288.8,3288.1,5.7371]
[1721009965273,0.0760194,3288.7,3288.1,5.7371]
[1721009965548,2.2875,3288.6,3288.0,1.068]
[1721009965846,2.2875,3288.6,3288.0,3.80519]
[1721009966047,2.60567868,3288.6,3288.2,1.068]
[1721009967447,3.34006245,3288.6,3288.2,1.068]
[1721009972172,3.34006245,3288.6,3288.0,3.80522]
[1721009972367,3.41609012,3288.6,3288.0,3.80522]
[1721009973375,3.41609012,3288.6,3288.0,1.068]
[1721009973763,6.15282012,3288.6,3288.0,1.068]
[1721009973961,0.88894701,3288.5,3287.9,3.0]
[1721009974166,0.07603351,3288.4,3287.9,3.0]
[1721009974372,0.07603351,3288.4,3287.8,3.0]
[1721009974752,2.2828,3288.3,3287.4,2.73766]
[1721009974967,0.0760379,3288.2,3287.4,2.73766]
[1721009975172,2.73731,3287.9,3287.1,2.7379]
[1721009975486,2.3774,3287.2,3285.7,0.63702688]
[1721009975655,3.80629,3286.8,3285.7,1.068]
[1721009975837,0.07607079,3286.7,3286.0,2.73888]
[1721009976041,2.73841,3286.6,3285.8,2.739]
[1721009976284,2.73858,3286.4,3285.5,3.80728]
[1721009976487,0.6313918,3286.3,3285.5,3.80728]
[1721009976825,2.73849,3286.5,3285.9,1.068]
[1721009977099,2.73832,3286.7,3286.1,1.068]
[1721009977602,2.7381,3287.0,3286.1,3.80679]
[1721009977802,2.73798,3287.1,3286.5,1.068]
[1721009978000,2.73798,3287.1,3286.3,3.80656]
[1721009978210,1.085319,3287.1,3286.3,3.80656]
[1721009978904,1.085319,3287.1,3286.5,1.068]
[1721009979570,0.47758368,3287.3,3286.7,1.068]
[1721009980173,0.47758368,3287.3,3286.6,2.73838]
[1721009981408,0.31825348,3287.2,3286.6,2.73838]
[1721009982672,3.05621348,3287.2,3286.4,2.73855]
[1721009982988,0.73396172,3287.1,3286.4,2.73855]
[1721009983184,3.05621348,3287.2,3286.4,2.73855]
[1721009983692,0.31825348,3287.2,3286.5,3.80639]
[1721009984592,0.31825348,3287.2,3286.7,2.7383]
[1721009988604,0.47758368,3287.3,3287.1,3.80597]
[1721009988811,5.22057,3288.3,3287.5,2.73757]
[1721009989013,0.31823333,3287.7,3287.5,2.73757]
[1721009989214,5.22057,3288.3,3287.6,1.068]
[1721009989523,2.73747,3287.7,3286.8,3.0]
[1721009989827,2.73747,3287.7,3286.8,5.73815]
[1721009990012,2.73747,3287.7,3286.9,2.73813]
[1721009990415,2.73736,3287.9,3287.0,3.80604]
[1721009991333,2.73736,3287.9,3287.2,1.068]
[1721009991532,0.547461,3287.8,3287.2,1.068]
[1721009993319,0.547461,3287.8,3287.3,2.73774]
[1721009993631,2.73735,3287.9,3287.2,1.068]
[1721009993834,2.73735,3287.9,3287.2,3.80588]
[1721009994310,2.73747,3287.7,3286.9,3.80613]
[1721009994511,2.2506,3287.6,3287.0,2.73805]
[1721009994833,0.498807,3287.5,3287.0,2.73805]
[1721009995337,0.498807,3287.5,3287.1,1.068]
[1721009996319,2.73732,3287.9,3287.3,1.068]
[1721009996516,2.7374,3287.8,3287.3,1.068]
[1721010001107,2.73748,3287.7,3287.3,1.068]
[1721010002548,2.73748,3287.7,3287.1,1.068]
[1721010003045,2.81342108,3287.9,3287.3,1.068]
[1721010003344,3.29245511,3287.8,3287.3,1.068]
[1721010004254,5.06375,3288.1,3287.5,1.068]
[1721010004552,2.81326525,3288.0,3287.5,1.068]
[1721010004750,2.81326525,3288.0,3287.3,1.068]
[1721010004929,0.51398652,3287.9,3287.3,1.068]
[1721010005128,0.0760472,3287.8,3287.3,1.068]
[1721010005716,2.8134472,3287.8,3287.3,1.068]
[1721010005921,2.81356016,3287.7,3287.0,1.068]
[1721010007518,2.81356016,3287.7,3287.0,3.80605]
[1721010007718,0.55509602,3287.6,3287.2,1.068]
[1721010007954,2.73751,3287.7,3287.2,1.068]
[1721010008250,3.25131652,3287.9,3287.4,1.068]
[1721010008421,2.73733,3287.9,3287.4,1.068]
[1721010009630,0.07604937,3287.8,3286.7,2.73828]
[1721010009957,2.73753,3287.7,3287.1,1.068]
[1721010010270,0.35741183,3287.6,3287.1,1.068]
[1721010010570,0.28135794,3287.6,3287.1,1.068]
[1721010010941,3.5332648,3287.7,3287.1,1.068]
[1721010012733,2.73756,3287.6,3287.1,1.068]
[1721010012956,0.07605331,3287.5,3287.1,1.068]
[1721010013515,2.73756,3287.6,3287.1,1.068]
[1721010013819,2.73756,3287.6,3287.0,2.73803]
[1721010014023,3.09089248,3287.6,3287.0,2.73803]
[1721010015358,0.35333248,3287.6,3287.0,2.73803]
[1721010015565,0.7957648,3287.7,3287.1,1.068]
[1721010016235,0.7957648,3287.7,3287.4,2.73771]
[1721010016646,0.7957648,3287.7,3287.5,1.068]
[1721010018907,0.7957648,3287.7,3287.6,2.73755]
[1721010019050,5.19319,3288.4,3287.7,2.73746]
[1721010019253,0.31825676,3288.1,3288.0,1.068]
[1721010019461,0.31825676,3288.1,3287.8,3.80539]
[1721010019664,0.31825676,3288.1,3288.0,1.068]
[1721010019880,0.47746558,3288.5,3288.0,1.068]
[1721010020054,0.79571595,3288.5,3288.0,1.068]
[1721010020899,0.79571595,3288.5,3287.8,2.73739]
[1721010020900,3.88577055,3288.5,3287.8,1.068]
[1721010021058,3.53252595,3288.5,3287.8,1.068]
[1721010022191,1.068,3288.3,3287.2,3.0]
[1721010022374,3.80528,3288.0,3287.2,2.73783]
[1721010022967,2.73728,3288.0,3287.2,2.73783]
[1721010023171,2.3097,3287.6,3286.7,1.068]
[1721010023496,0.07605814,3287.5,3286.7,1.068]
[1721010023792,0.07605814,3287.5,3286.7,3.80625]
[1721010023793,2.81374814,3287.5,3286.7,3.80625]
[1721010023979,0.51234481,3287.4,3286.7,3.80625]
[1721010024181,3.25007481,3287.4,3286.7,3.80625]
[1721010024561,3.32613314,3287.4,3286.7,3.80625]
[1721010025277,3.25007481,3287.4,3286.7,3.80625]
[1721010026508,2.73794,3287.2,3286.5,2.73846]
[1721010026802,0.32500748,3287.3,3286.5,2.73846]
[1721010027003,2.73765,3287.5,3286.8,2.73821]
[1721010027302,3.1388374,3287.4,3286.6,2.73833]
[1721010027615,0.4011074,3287.3,3286.6,2.73833]
[1721010028167,0.07605783,3287.2,3286.3,2.73863]
[1721010028364,3.13916583,3287.1,3286.3,2.73863]
[1721010028607,0.40123777,3287.0,3286.3,2.73863]
[1721010028917,0.31392078,3286.9,3286.3,2.73863]
[1721010029963,0.31392078,3286.9,3286.1,2.73877]
[1721010030172,0.07606527,3286.8,3286.1,2.73877]
[1721010030471,0.07606527,3286.8,3285.9,2.73896]
[1721010031068,3.13969637,3286.7,3286.0,2.73888]
[1721010031282,3.30982171,3286.7,3286.0,2.73888]
[1721010031601,2.57462078,3286.9,3286.0,2.73888]
[1721010031602,2.57462078,3286.9,3286.2,2.73871]
[1721010031995,0.4012787,3286.8,3286.2,2.73871]
[1721010032184,2.57462078,3286.9,3286.2,2.73871]
[1721010032383,0.40129529,3286.8,3286.2,2.73871]
[1721010032564,2.57462078,3286.9,3286.2,2.73871]
[1721010032789,2.63348374,3287.2,3286.3,2.73862]
[1721010033108,2.63348374,3287.2,3286.4,2.73848]
[1721010033414,2.63348374,3287.2,3286.5,2.73846]
[1721010033732,2.63348374,3287.2,3286.3,2.73862]
[1721010033893,0.93840476,3287.1,3286.3,2.73862]
[1721010034088,2.73817,3286.9,3286.2,2.73872]
[1721010034832,2.73817,3286.9,3285.9,5.09385]
[1721010035029,2.73817,3286.9,3286.1,2.7388]
[1721010035416,3.05644822,3286.9,3286.1,2.7388]
[1721010035588,3.05644822,3286.9,3286.2,2.73871]
[1721010035589,0.30564482,3286.8,3286.2,2.73871]
[1721010035789,0.31827822,3286.9,3286.2,2.73871]
[1721010036331,3.05643822,3286.9,3286.2,2.73871]
[1721010037923,2.81429213,3286.8,3286.0,2.73883]
[1721010038126,0.31325704,3286.7,3286.0,2.73883]
[1721010038336,0.31325704,3286.7,3286.1,2.7388]
[1721010039390,0.31827822,3286.9,3286.2,2.73871]
[1721010039593,0.31827822,3286.9,3286.4,2.73849]
[1721010040696,0.31827822,3286.9,3286.5,2.73846]
[1721010040989,0.31827822,3286.9,3286.2,2.73867]
[1721010041195,0.31827822,3286.9,3286.6,2.73836]
[1721010041936,0.31827822,3286.9,3286.7,2.73829]
[1721010042239,0.31827822,3286.9,3286.3,0.273867]
[1721010042240,2.73744,3287.8,3287.1,2.73794]
[1721010042389,0.40105186,3287.7,3287.1,2.73794]
[1721010042591,0.31824759,3287.4,3287.1,2.73794]
[1721010044227,2.4293,3287.9,3287.1,2.73794]
[1721010044434,0.3182574,3287.8,3287.3,2.73774]
[1721010044587,0.3182574,3287.8,3287.4,2.73772]
[1721010044942,0.3182574,3287.8,3287.5,2.73763]
[1721010049004,0.3182574,3287.8,3287.3,2.7378]
[1721010049205,0.3182574,3287.8,3287.4,5.4753]
[1721010049429,0.3182574,3287.8,3287.4,2.73764]
[1721010050836,0.3182574,3287.8,3287.2,2.73783]
[1721010051241,5.2168817,3287.7,3286.7,7.43]
[1721010051488,3.29109391,3287.6,3286.7,10.16825]
[1721010052007,3.29109391,3287.6,3286.8,2.73822]
[1721010052823,2.73774,3287.4,3286.5,2.73846]
[1721010053021,2.73788,3287.3,3286.5,2.73846]
[1721010053244,3.285442,3287.3,3286.5,2.73846]
[1721010053555,2.7379,3287.2,3286.5,2.73846]
[1721010055958,2.4876,3287.1,3286.5,2.73845]
[1721010056492,2.4876,3287.1,3286.6,2.73839]
[1721010057019,5.2256,3287.1,3286.4,2.73852]
[1721010057260,0.24876,3287.0,3286.4,2.73852]
[1721010058990,2.4876,3287.1,3286.4,2.73852]
[1721010059271,2.73789,3287.2,3286.6,2.73839]
[1721010060334,5.36777797,3287.4,3286.6,2.73839]
[1721010061058,2.73783,3287.3,3286.6,2.73839]
[1721010062164,5.36777797,3287.4,3286.6,2.73839]
[1721010062334,2.73781,3287.3,3286.6,2.73839]
[1721010064689,3.22212716,3287.4,3286.7,2.73828]
[1721010064871,5.95987716,3287.4,3286.7,2.73828]
[1721010065557,2.73782,3287.3,3286.7,2.73828]
[1721010065853,2.73782,3287.3,3286.5,2.73842]
[1721010066081,0.59599472,3287.2,3286.5,2.73842]
[1721010066250,0.59599472,3287.2,3286.6,2.73838]
[1721010067876,0.59599472,3287.2,3286.2,3.0]
[1721010067877,2.73805,3287.1,3286.2,3.0]
[1721010068054,2.2533,3286.9,3286.2,2.73865]
[1721010068254,2.73837,3286.7,3285.9,2.73896]
[1721010068491,2.73837,3286.7,3286.0,2.73889]
[1721010069286,2.73837,3286.7,3285.9,2.73896]
[1721010069481,2.73837,3286.7,3286.0,2.73888]
[1721010070061,2.73837,3286.7,3285.7,12.48421]
[1721010070277,0.29637,3286.6,3285.9,2.73897]
[1721010071893,3.03478,3286.6,3285.9,2.73897]
[1721010072094,2.96361,3286.8,3286.0,2.73888]
[1721010072399,2.73831,3286.7,3286.0,2.73888]
[1721010074079,2.2533,3286.9,3286.2,2.73872]
[1721010074683,2.73792,3287.2,3286.4,2.2699]
[1721010075012,0.31831566,3286.9,3286.5,5.30347]
[1721010075370,0.31831566,3286.9,3286.8,2.73822]
[1721010075621,5.18908,3287.7,3286.8,2.73822]
[1721010075807,0.31831327,3287.4,3286.8,2.73822]
[1721010076169,0.31831327,3287.4,3287.0,2.73805]
[1721010078082,0.31831327,3287.4,3287.1,2.73797]
[1721010078412,2.73722,3288.0,3287.2,2.73788]
[1721010078596,0.31831786,3287.8,3287.3,2.7378]
[1721010078907,0.31831786,3287.8,3287.4,2.73771]
[1721010079681,0.31831786,3287.8,3287.5,2.73761]
[1721010079880,0.31831786,3287.8,3287.6,2.73755]
[1721010080583,7.42,3288.3,3287.6,2.73755]
[1721010080788,0.31833148,3288.2,3287.6,2.73755]
[1721010081915,0.31833148,3288.2,3287.9,2.7373]
[1721010082485,0.47746558,3288.5,3288.1,5.30206]
[1721010082811,0.31831041,3288.7,3288.2,2.73704]
[1721010084407,0.31831041,3288.7,3287.3,4.831]
[1721010084408,0.31831041,3288.7,3284.8,2.92593032]
[1721010084409,2.4103,3286.7,3284.8,2.92593032]
[1721010084590,2.4103,3286.7,3284.6,0.63807562]
[1721010084591,2.565,3285.9,3284.6,2.73998]
[1721010084795,4.66229222,3285.8,3284.6,2.73998]
[1721010085015,4.58763458,3285.7,3284.7,2.73996]
[1721010085179,3.80377211,3285.7,3284.7,2.73996]
[1721010085392,0.78390659,3285.6,3284.7,2.73996]
[1721010085618,6.54297211,3285.7,3284.7,2.73996]
[1721010085924,2.13771121,3285.6,3284.7,2.73996]
[1721010086100,1.05457676,3285.5,3284.5,2.74006]
[1721010086508,1.05457676,3285.5,3284.2,2.3133]
[1721010086829,2.73973,3285.0,3284.1,2.74045]
[1721010087038,1.05457676,3284.9,3283.7,2.4168]
[1721010087192,1.05457676,3285.2,3283.7,2.4168]
[1721010087396,2.73987,3284.9,3284.0,2.74055]
[1721010087619,3.10160768,3285.1,3284.0,2.74055]
[1721010087620,2.73992,3284.8,3284.0,2.74055]
[1721010088994,2.74002,3284.7,3284.0,2.74055]
[1721010090237,2.74002,3284.7,3283.8,2.98237]
[1721010091732,2.74006,3284.6,3283.8,2.98237]
[1721010092032,2.74006,3284.6,3283.9,0.539917]
[1721010092209,2.73989,3284.8,3283.9,3.280557]
[1721010092598,2.73964,3285.1,3283.9,3.280557]
[1721010092823,0.198278,3285.4,3283.9,0.539917]
[1721010092824,2.73948,3285.3,3283.9,0.539917]
[1721010093130,2.73948,3285.3,3284.1,2.74045]
[1721010093329,2.73948,3285.3,3284.3,2.74027]
[1721010093691,0.198278,3285.4,3284.2,0.274045]
[1721010093891,2.73931,3285.5,3284.2,0.274045]
[1721010094143,2.73939,3285.4,3284.5,2.7401]
[1721010096147,2.73923,3285.6,3284.3,2.7403]
[1721010096148,2.73949,3285.3,3284.3,2.7403]
[1721010096496,2.73949,3285.3,3284.2,0.274045]
[1721010096730,2.73973,3285.0,3284.1,2.74043]
[1721010098039,3.05840139,3285.0,3284.2,2.74038]
[1721010101330,3.05840139,3285.0,3284.0,2.74055]
[1721010101331,3.05840139,3285.0,3284.3,2.74029]
[1721010103319,0.31867139,3285.0,3284.4,2.74021]
[1721010103519,0.31867139,3285.0,3284.4,3.014231]
[1721010104906,0.31867139,3285.0,3284.4,0.274021]
[1721010105133,0.31867139,3285.0,3284.6,2.74004]
[1721010107843,0.31867139,3285.0,3284.7,2.73997]
[1721010109627,2.7389,3286.0,3284.9,2.7398]
[1721010109838,2.73906,3285.8,3284.9,2.7398]
[1721010110015,0.31866527,3285.6,3284.8,0.273997]
[1721010110221,0.31866527,3285.6,3285.2,2.73952]
[1721010111754,2.73889,3286.0,3285.2,2.73952]
[1721010112054,3.527781,3286.0,3285.2,2.73952]
[1721010112220,2.73889,3286.0,3285.2,2.73952]
[1721010112950,5.46868847,3286.2,3285.3,2.73945]
[1721010113151,5.46868847,3286.2,3284.8,0.273997]
[1721010113152,0.31866847,3286.2,3284.8,4.669997]
[1721010113357,0.31866847,3286.2,3284.9,4.831]
[1721010113530,0.31866847,3286.2,3285.1,2.3428]
[1721010113716,2.73847,3286.5,3285.6,2.73917]
[1721010113918,1.05418619,3286.4,3285.6,2.73917]
[1721010114254,1.05419309,3286.3,3285.7,2.73913]
[1721010114450,2.6693887,3286.6,3285.7,2.73913]
[1721010114451,1.05419309,3286.2,3285.7,2.73913]
[1721010114654,1.05419309,3286.1,3285.7,2.73913]
[1721010114854,3.0570787,3286.6,3285.8,2.73905]
[1721010115019,1.05411586,3286.5,3285.8,2.73905]
[1721010115428,1.05412144,3286.4,3285.8,2.73905]
[1721010115627,3.0570787,3286.6,3285.8,2.73905]
[1721010115628,1.05412144,3286.3,3285.8,2.73905]
[1721010115868,1.05412144,3286.5,3285.8,2.73905]
[1721010116168,1.05412144,3286.4,3285.8,2.73905]
[1721010116328,1.05412144,3286.5,3285.8,2.73905]
[1721010117830,3.79259144,3286.5,3285.8,2.73905]
[1721010118025,1.05412144,3286.4,3285.8,2.73905]
[1721010118232,3.79268144,3286.4,3285.5,2.73924]
[1721010118470,1.05412144,3286.3,3285.5,2.73924]
[1721010118631,0.37926814,3286.3,3285.5,2.73924]
[1721010118830,1.05425037,3286.2,3285.6,2.73921]
[1721010119157,0.37926814,3286.3,3285.6,2.73921]
[1721010119341,1.05422737,3286.2,3285.6,2.73921]
[1721010119541,0.37926814,3286.3,3285.6,2.73921]
[1721010119741,1.0542276,3286.2,3285.7,2.73914]
[1721010119947,0.37926814,3286.3,3285.7,2.73914]
[1721010120138,0.37926814,3286.3,3284.9,5.73977]
[1721010120139,2.73906,3285.8,3284.9,2.73974]
[1721010120343,3.86966527,3285.7,3284.5,2.74006]
[1721010120569,1.05442505,3285.6,3284.5,2.74006]
[1721010120936,2.73938,3285.5,3284.7,2.73997]
[1721010121142,0.37938051,3285.4,3284.7,2.73997]
[1721010121480,1.43392899,3285.4,3284.7,2.73997]
[1721010121775,1.05454848,3285.3,3284.7,2.73997]
[1721010122134,1.05454848,3285.2,3284.7,2.73997]
[1721010122362,0.37938051,3285.4,3284.7,2.73997]
[1721010122549,1.05452414,3285.3,3284.7,2.73997]
[1721010122752,1.05452414,3285.2,3284.7,2.73997]
[1721010123035,1.05452414,3285.1,3284.7,2.73997]
[1721010123237,1.05452414,3285.3,3284.7,2.73997]
[1721010124081,1.05452414,3285.3,3284.8,2.73987]
[1721010124570,0.37938051,3285.4,3284.8,2.73987]
[1721010124734,1.05457058,3285.3,3284.8,2.73987]
[1721010124929,0.37938051,3285.4,3284.8,2.73987]
[1721010125135,1.05456845,3285.3,3284.8,2.73987]
[1721010125331,1.05456845,3285.2,3284.8,2.73987]
[1721010125535,1.05456845,3285.1,3284.8,2.73987]
[1721010125775,1.05456845,3285.3,3284.8,2.73987]
[1721010125974,1.05457191,3285.2,3284.8,2.73987]
[1721010126281,1.05457191,3285.1,3284.8,2.73987]
[1721010126441,0.37938051,3285.4,3284.8,2.73987]
[1721010126775,1.0545652,3285.3,3284.8,2.73987]
[1721010126937,1.0545652,3285.2,3284.8,2.73987]
[1721010127275,1.05456843,3285.1,3284.8,2.73987]
[1721010127446,1.05456843,3285.0,3284.8,2.73987]
[1721010127645,1.05456843,3285.3,3284.8,2.73987]
[1721010127834,1.05457038,3285.2,3284.8,2.73987]
[1721010128032,1.05457038,3285.1,3284.8,2.73987]
[1721010128335,1.05457038,3285.0,3284.8,2.73987]
[1721010128672,0.37938051,3285.4,3284.8,2.73987]
[1721010128976,1.05456629,3285.3,3284.8,2.73987]
[1721010129146,1.05456629,3285.2,3284.8,2.73987]
[1721010129346,1.05456629,3285.3,3284.8,2.73987]
[1721010130271,1.05456629,3285.6,3285.2,2.73955]
[1721010130470,1.05456629,3285.5,3285.1,2.73956]
[1721010130672,1.05456629,3285.4,3285.0,2.2607]
[1721010130982,2.73905,3285.9,3284.9,2.73974]
[1721010131191,1.57770485,3285.8,3284.9,2.73974]
[1721010131351,1.29619042,3285.7,3284.9,2.73974]
[1721010131547,1.05444076,3285.6,3284.9,2.73974]
[1721010131754,1.05444076,3285.5,3285.1,2.73963]
[1721010131978,1.05444076,3285.4,3285.1,2.73963]
[1721010132292,3.02058443,3285.8,3285.1,2.73963]
[1721010132581,2.354,3285.6,3283.9,4.94555586]
[1721010132791,1.2961701,3285.5,3284.6,2.73998]
[1721010132963,1.29614105,3285.4,3284.8,2.73983]
[1721010133164,1.05441463,3285.3,3284.8,2.73983]
[1721010133364,2.73939,3285.4,3284.5,2.74012]
[1721010133563,1.05441463,3285.3,3284.5,2.74012]
[1721010133765,1.05441463,3285.3,3284.7,2.73996]
[1721010134657,1.05454239,3285.2,3284.7,2.73996]
[1721010134892,1.05454239,3285.1,3284.6,2.74005]
[1721010135092,1.05454239,3285.2,3284.6,2.74005]
[1721010135258,1.05454239,3285.1,3284.6,2.74005]
[1721010135586,1.05454239,3285.0,3284.6,2.74005]
[1721010135789,2.73965,3285.1,3284.1,2.74044]
[1721010135953,1.05454239,3285.0,3284.1,2.74044]
[1721010136288,1.05454239,3285.0,3284.3,2.74023]
[1721010137060,1.05454239,3285.0,3284.4,2.74021]
[1721010137262,1.05454239,3285.0,3284.6,2.74]
[1721010137468,1.05454239,3284.9,3284.6,2.74]
[1721010137794,2.73942,3285.4,3284.6,2.74]
[1721010137992,1.29609531,3285.3,3284.7,2.73994]
[1721010138158,1.29609531,3285.2,3284.7,2.73994]
[1721010138489,0.806804,3285.4,3284.7,2.73994]
[1721010138490,1.0545385,3285.1,3284.7,2.73994]
[1721010138660,1.0545385,3285.3,3284.7,2.73994]
[1721010138860,1.29604339,3285.2,3284.7,2.73994]
[1721010139074,1.0545385,3285.1,3284.7,2.73994]
[1721010139260,1.0545385,3285.0,3284.7,2.73994]
[1721010139477,1.0545385,3285.3,3284.7,2.73994]
[1721010139661,0.24158537,3285.2,3284.7,2.73994]
[1721010139871,1.53815175,3285.3,3284.7,2.73994]
[1721010139872,1.0545385,3285.1,3284.7,2.73994]
[1721010140198,1.0545385,3285.0,3284.5,2.74007]
[1721010140367,1.0545385,3285.2,3284.5,2.74007]
[1721010140689,1.0545385,3285.2,3284.6,2.74005]
[1721010140899,0.39535382,3285.1,3284.6,2.74005]
[1721010141069,0.15381518,3285.1,3284.6,2.74005]
[1721010141269,1.05457544,3285.0,3284.6,2.74005]
[1721010141621,2.73956,3285.2,3284.4,5.48038]
[1721010141771,1.29614758,3285.1,3284.4,5.48038]
[1721010141960,1.05457674,3285.0,3284.5,2.74013]
[1721010142158,1.05457674,3284.9,3284.5,2.74013]
[1721010142381,1.05457674,3285.1,3284.6,2.74004]
[1721010142577,1.05457674,3285.0,3284.7,2.73997]
[1721010142777,1.05457674,3285.3,3284.7,2.73997]
[1721010143062,1.29623206,3285.2,3284.7,2.73997]
[1721010143396,1.05457674,3285.1,3284.7,2.73997]
[1721010143557,1.05457674,3285.0,3284.7,2.73997]
[1721010143758,1.05457674,3284.9,3284.7,2.73997]
[1721010143956,1.05457674,3284.8,3284.5,5.48021]
[1721010144193,1.05457629,3284.7,3284.6,2.74005]
[1721010144600,0.47783982,3285.2,3284.7,2.73996]
[1721010144757,1.05457446,3285.1,3284.7,2.73996]
[1721010144953,1.05457446,3285.0,3284.7,2.73996]
[1721010145154,1.05457446,3285.1,3284.7,2.73996]
[1721010150388,1.05457446,3285.1,3284.8,2.73989]
[1721010150798,1.05457446,3285.1,3284.9,2.7398]
[1721010151216,1.05457446,3285.1,3284.8,2.73989]
[1721010151422,1.0545178,3285.0,3284.8,2.73989]
[1721010151622,1.0545178,3284.9,3284.8,2.73989]
[1721010152120,1.0545178,3285.1,3284.8,2.73989]
[1721010152420,1.0545178,3285.0,3284.8,2.73989]
[1721010152830,1.0545178,3284.9,3284.8,2.73989]
[1721010153043,1.0545178,3285.1,3284.5,2.74013]
[1721010153217,1.20775356,3285.0,3284.5,2.74013]
[1721010153533,1.0545178,3284.9,3284.5,2.74013]
[1721010153836,1.0545178,3284.8,3284.5,2.74013]
[1721010154039,1.0545178,3285.1,3284.5,2.74013]
[1721010154223,1.0545178,3285.0,3284.6,2.74005]
[1721010154533,0.47783982,3285.2,3284.6,2.74005]